bitfinex/quotes_SOLUSD_20240726
["timestamp","ask_amount","ask_price","bid_price","bid_amount"]
[1722030926395,63.4969,182.92,182.8,15.1584]
[1722030926607,13.03,182.91,182.84,13.03]
[1722030926802,45.0,182.9,182.84,13.03]
[1722030927309,18.4969,182.92,182.85,13.03]
[1722030927310,45.0,182.91,182.85,13.03]
[1722030927690,13.03,182.9,182.8,15.1584]
[1722030927893,45.0,182.89,182.85,13.03]
[1722030928303,45.0,182.89,182.84,13.03]
[1722030928509,45.0,182.89,182.85,13.03]
[1722030929606,45.0,182.9,182.85,13.03]
[1722030930519,5.4677,182.89,182.83,13.03]
[1722030930696,45.0,182.88,182.83,13.03]
[1722030930896,45.0,182.9,182.84,13.03]
[1722030931593,45.0,182.9,182.85,13.03]
[1722030931815,45.0,182.91,182.85,13.03]
[1722030932902,45.0,182.92,182.86,13.03]
[1722030935298,45.0,182.92,182.87,13.03]
[1722030937119,18.496,182.95,182.88,13.03]
[1722030937310,45.0,182.94,182.88,13.03]
[1722030944624,45.0,182.94,182.89,13.03]
[1722030944826,45.0,182.94,182.88,13.03]
[1722030945001,50.4663,182.94,182.87,13.03]
[1722030945203,5.4665,182.93,182.87,13.03]
[1722030945541,45.0,182.92,182.86,13.03]
[1722030945822,45.0,182.92,182.8,17.35400887]
[1722030946126,58.03,182.92,182.8,17.35400887]
[1722030946307,45.0,182.92,182.86,13.03]
[1722030947507,58.03,182.93,182.86,13.03]
[1722030947933,58.03,182.93,182.87,13.03]
[1722030948542,45.0,182.93,182.87,13.03]
[1722030951741,45.0,182.93,182.88,13.03]
[1722030952116,45.0,182.93,182.87,13.03]
[1722030954538,45.0,182.93,182.88,13.03]
[1722030959351,50.4666,182.93,182.88,13.03]
[1722030960262,50.4666,182.93,182.87,13.03]
[1722030960544,45.0,182.93,182.88,13.03]
[1722030960931,45.0,182.94,182.88,13.03]
[1722030961851,45.0,182.94,182.89,13.03]
[1722030962046,50.466,182.95,182.89,13.03]
[1722030964028,45.0,182.95,182.9,13.03]
[1722030964245,50.4657,182.96,182.9,13.03]
[1722030965551,63.4957,182.96,182.9,13.03]
[1722030969651,50.4657,182.96,182.9,13.03]
[1722030971354,45.0,182.96,182.9,13.03]
[1722030972155,50.4657,182.96,182.9,13.03]
[1722030972356,63.4957,182.96,182.9,13.03]
[1722030975352,63.4957,182.96,182.87,15.3974]
[1722030975552,18.4966,182.93,182.87,15.3974]
[1722030975754,18.4966,182.93,182.86,13.03]
[1722030975755,50.467,182.92,182.86,13.03]
[1722030976162,63.497,182.92,182.86,13.03]
[1722030978461,63.497,182.92,182.85,13.03]
[1722030978657,63.497,182.92,182.82,16.4455]
[1722030978964,18.4972,182.91,182.84,13.03]
[1722030979156,45.0,182.9,182.84,13.03]
[1722030980455,45.0,182.9,182.82,16.4455]
[1722030980774,63.4976,182.9,182.82,29.4755]
[1722030980952,74.5059,182.9,182.76,284.86690156]
[1722030981147,5.4689,182.85,182.76,16.4455]
[1722030981366,50.4693,182.84,182.78,13.03]
[1722030981569,63.4993,182.84,182.78,13.03]
[1722030981771,63.4993,182.84,182.77,13.03]
[1722030982267,13.03,182.79,182.66,23.31332104]
[1722030982575,13.03,182.79,182.72,13.03]
[1722030982576,18.5007,182.79,182.72,13.03]
[1722030982874,45.0,182.78,182.72,13.03]
[1722030983175,45.0,182.78,182.73,13.03]
[1722030983365,45.0,182.79,182.73,13.03]
[1722030984071,45.0,182.79,182.74,13.03]
[1722030984654,50.4707,182.79,182.66,15.1813]
[1722030984857,50.4707,182.79,182.72,13.03]
[1722030984858,63.5007,182.79,182.72,13.03]
[1722030985076,50.4707,182.79,182.73,13.03]
[1722030986851,45.0,182.79,182.73,13.03]
[1722030987047,18.5014,182.77,182.66,15.1813]
[1722030987354,58.03,182.76,182.7,13.03]
[1722030987762,58.03,182.76,182.69,13.03]
[1722030988953,45.0,182.76,182.7,13.03]
[1722030989159,45.0,182.76,182.71,13.03]
[1722030990088,45.0,182.77,182.71,13.03]
[1722030990569,63.5014,182.77,182.7,13.03]
[1722030990766,63.5014,182.77,182.71,13.03]
[1722030991074,5.4702,182.81,182.75,13.03]
[1722030991277,13.03,182.81,182.75,13.03]
[1722030992466,45.0,182.8,182.75,13.03]
[1722030992656,45.0,182.8,182.74,13.03]
[1722030994578,22.4863,182.82,182.75,13.03]
[1722030994760,22.4863,182.82,182.78,13.03]
[1722030995662,22.4863,182.82,182.77,13.03]
[1722030995868,45.0,182.81,182.77,13.03]
[1722031000182,50.4703,182.81,182.76,13.03]
[1722031001881,45.0,182.81,182.76,13.03]
[1722031002265,45.0,182.81,182.77,13.03]
[1722031009094,45.0,182.81,182.78,13.03]
[1722031010598,45.0,182.81,182.77,13.03]
[1722031011205,50.4701,182.81,182.76,13.03]
[1722031011720,50.4701,182.81,182.7,52.12]
[1722031011721,45.0,182.81,182.7,52.12]
[1722031011883,45.0,182.81,182.76,13.03]
[1722031013702,45.0,182.81,182.77,13.03]
[1722031015200,45.0,182.81,182.78,13.03]
[1722031015501,45.0,182.81,182.79,13.03]
[1722031015697,45.0,182.81,182.72,16.0494]
[1722031015698,45.0,182.81,182.8,13.03]
[1722031017805,16.5298,182.86,182.8,13.03]
[1722031018010,16.5298,182.86,182.73,1.09411064]
[1722031018188,6.2593,182.87,182.81,13.03]
[1722031018380,6.2593,182.87,182.82,13.03]
[1722031019241,11.7276,182.87,182.82,13.03]
[1722031019381,45.0,182.86,182.82,13.03]
[1722031020009,45.0,182.86,182.83,13.03]
[1722031020191,6.2593,182.87,182.83,13.03]
[1722031020887,18.498,182.89,182.84,13.03]
[1722031020888,5.468,182.89,182.84,13.03]
[1722031021087,20.5821,182.9,182.84,13.03]
[1722031021708,5.4677,182.89,182.84,13.03]
[1722031022004,18.498,182.88,182.82,13.03]
[1722031022381,45.0,182.87,182.82,13.03]
[1722031023212,45.0,182.87,182.83,13.03]
[1722031027303,45.0,182.88,182.83,13.03]
[1722031027622,45.0,182.88,182.82,13.03]
[1722031028407,45.0,182.88,182.79,16.0494]
[1722031028610,45.0,182.88,182.83,13.03]
[1722031031201,45.0,182.88,182.84,13.03]
[1722031031630,45.0,182.89,182.84,13.03]
[1722031033819,45.0,182.89,182.79,29.0794]
[1722031033820,58.03,182.89,182.79,16.0494]
[1722031034521,58.03,182.89,182.82,13.03]
[1722031034708,5.468,182.88,182.83,13.03]
[1722031034913,45.0,182.87,182.83,13.03]
[1722031036905,45.0,182.88,182.83,13.03]
[1722031039413,45.0,182.89,182.83,13.03]
[1722031039835,45.0,182.89,182.84,13.03]
[1722031048347,45.0,182.89,182.79,29.0794]
[1722031048348,45.0,182.89,182.83,13.03]
[1722031049438,45.0,182.89,182.84,13.03]
[1722031051039,50.4678,182.89,182.84,13.03]
[1722031052315,45.0,182.89,182.84,13.03]
[1722031055429,45.0,182.89,182.79,29.0794]
[1722031055730,50.4678,182.89,182.79,68.1694]
[1722031055929,50.4678,182.89,182.84,13.03]
[1722031056131,50.4678,182.89,182.79,68.1694]
[1722031056326,50.4678,182.89,182.83,13.03]
[1722031065445,45.0,182.89,182.83,13.03]
[1722031068443,45.0,182.89,182.84,13.03]
[1722031068643,45.0,182.9,182.84,13.03]
[1722031070258,50.4675,182.9,182.84,13.03]
[1722031072461,50.4675,182.9,182.79,16.0494]
[1722031072646,13.03,182.89,182.79,16.0494]
[1722031072848,45.0,182.88,182.82,13.03]
[1722031073264,45.0,182.88,182.79,16.0494]
[1722031073860,45.0,182.88,182.82,13.03]
[1722031076146,50.4682,182.88,182.82,13.03]
[1722031076667,50.4682,182.88,182.83,13.03]
[1722031077568,50.4682,182.88,182.82,13.03]
[1722031078777,45.0,182.88,182.82,13.03]
[1722031079151,45.0,182.88,182.83,13.03]
[1722031083463,45.0,182.88,182.82,13.03]
[1722031084153,45.0,182.88,182.79,16.0494]
[1722031084351,18.4989,182.86,182.75,16.0039]
[1722031084557,45.0,182.85,182.79,13.03]
[1722031086158,5.4702,182.81,182.72,8.12639912]
[1722031086471,5.4711,182.78,182.73,13.03]
[1722031086678,45.0,182.77,182.73,13.03]
[1722031087956,45.0,182.78,182.73,13.03]
[1722031088190,45.0,182.78,182.67,16.0039]
[1722031088476,45.0,182.78,182.73,13.03]
[1722031089874,45.0,182.78,182.74,13.03]
[1722031090575,45.0,182.78,182.73,13.03]
[1722031091551,45.0,182.78,182.67,16.0039]
[1722031091754,45.0,182.78,182.73,13.03]
[1722031092865,45.0,182.79,182.73,13.03]
[1722031095879,45.0,182.79,182.74,13.03]
[1722031096063,45.0,182.8,182.74,13.03]
[1722031099378,45.0,182.8,182.75,13.03]
[1722031101487,45.0,182.8,182.7,13.03]
[1722031101488,45.0,182.8,182.77,13.03]
[1722031103011,45.0,182.81,182.77,13.03]
[1722031103381,5.4697,182.83,182.77,13.03]
[1722031103382,45.0,182.82,182.77,13.03]
[1722031105267,50.4699,182.82,182.77,13.03]
[1722031109397,50.4699,182.82,182.76,13.03]
[1722031110283,58.03,182.82,182.75,13.03]
[1722031110683,5.4705,182.8,182.74,13.03]
[1722031110890,45.0,182.79,182.74,13.03]
[1722031111397,5.4712,182.78,182.68,15.1298]
[1722031111691,45.0,182.77,182.72,13.03]
[1722031114902,50.4713,182.77,182.72,13.03]
[1722031115200,45.0,182.77,182.72,13.03]
[1722031115809,45.0,182.77,182.71,13.03]
[1722031119509,45.0,182.77,182.72,13.03]
[1722031119895,45.0,182.77,182.73,13.03]
[1722031120100,13.6744,182.83,182.73,13.03]
[1722031120101,45.0,182.78,182.73,13.03]
[1722031120292,45.0,182.79,182.75,13.03]
[1722031120492,45.0,182.8,182.75,13.03]
[1722031124391,50.4705,182.8,182.74,13.03]
[1722031127808,5.4707,182.79,182.74,13.03]
[1722031127997,45.0,182.78,182.74,13.03]
[1722031128698,45.0,182.78,182.73,13.03]
[1722031134805,45.0,182.78,182.74,13.03]
[1722031135912,22.2042,182.84,182.76,13.03]
[1722031136217,13.03,182.83,182.7,52.12]
[1722031136424,22.2042,182.84,182.75,13.03]
[1722031136425,5.4702,182.81,182.75,13.03]
[1722031137424,45.0,182.8,182.75,13.03]
[1722031138499,45.0,182.81,182.75,13.03]
[1722031138707,45.0,182.81,182.76,13.03]
[1722031139928,45.0,182.81,182.75,13.03]
[1722031140434,50.4701,182.81,182.75,13.03]
[1722031140733,22.2042,182.84,182.77,13.03]
[1722031140906,22.2042,182.84,182.71,22.6189]
[1722031140907,11.9695,182.84,182.71,23.71323052]
[1722031141244,19.5302,182.84,182.78,13.03]
[1722031141409,5.4685,182.87,182.79,13.03]
[1722031141734,13.03,182.86,182.79,13.03]
[1722031142420,5.4684,182.87,182.79,13.03]
[1722031142628,13.03,182.86,182.79,13.03]
[1722031143832,45.0,182.85,182.79,13.03]
[1722031144140,45.0,182.86,182.8,13.03]
[1722031144340,58.03,182.86,182.77,16.4368]
[1722031144643,13.03,182.85,182.78,13.03]
[1722031144840,50.4693,182.84,182.78,13.03]
[1722031146227,45.0,182.84,182.78,13.03]
[1722031146438,5.4698,182.82,182.77,13.03]
[1722031146636,21.6947,182.89,182.8,13.03]
[1722031146817,13.03,182.87,182.8,13.03]
[1722031147223,13.03,182.87,182.81,13.03]
[1722031147835,45.0,182.86,182.81,13.03]
[1722031148050,50.4684,182.87,182.81,13.03]
[1722031150346,45.0,182.87,182.81,13.03]
[1722031150572,45.0,182.87,182.82,13.03]
[1722031150730,45.0,182.88,182.83,13.03]
[1722031151738,50.4681,182.88,182.83,13.03]
[1722031152342,50.4681,182.88,182.82,13.03]
[1722031152746,63.4981,182.88,182.81,13.03]
[1722031152950,45.0,182.88,182.83,13.03]
[1722031153124,50.4682,182.88,182.8,16.4368]
[1722031153323,50.4682,182.88,182.82,13.03]
[1722031154147,5.4686,182.87,182.8,16.4368]
[1722031154337,50.4687,182.86,182.8,29.4668]
[1722031156648,50.4687,182.86,182.81,13.03]
[1722031157151,45.0,182.86,182.81,13.03]
[1722031157658,45.0,182.86,182.82,13.03]
[1722031166749,50.4687,182.86,182.81,13.03]
[1722031168149,50.4687,182.86,182.8,16.4368]
[1722031168338,45.0,182.86,182.8,16.4368]
[1722031168543,45.0,182.86,182.81,13.03]
[1722031168851,45.0,182.86,182.82,13.03]
[1722031169153,45.0,182.87,182.82,13.03]
[1722031173033,45.0,182.88,182.82,13.03]
[1722031174156,50.468,182.88,182.82,13.03]
[1722031179634,60.8835,182.88,182.74,18.21029804]
[1722031179836,13.03,182.83,182.76,13.03]
[1722031180070,50.4699,182.82,182.76,13.03]
[1722031180240,45.0,182.82,182.76,13.03]
[1722031180578,45.0,182.82,182.79,13.03]
[1722031180746,45.0,182.83,182.8,13.03]
[1722031180952,50.4695,182.83,182.8,13.03]
[1722031181657,5.4699,182.82,182.78,13.03]
[1722031181960,45.0,182.81,182.78,13.03]
[1722031183076,45.0,182.81,182.74,15.9938]
[1722031183260,45.0,182.81,182.7,15.9938]
[1722031183261,13.03,182.79,182.7,15.9938]
[1722031183563,5.471,182.78,182.72,13.03]
[1722031183763,45.0,182.77,182.72,13.03]
[1722031184178,45.0,182.78,182.72,13.03]
[1722031184365,45.0,182.78,182.69,13.03]
[1722031184569,5.4723,182.74,182.69,13.03]
[1722031184768,45.0,182.73,182.69,13.03]
[1722031185264,6.0176,182.73,182.67,13.03]
[1722031185567,19.0476,182.73,182.66,13.03]
[1722031185775,45.0,182.72,182.67,13.03]
[1722031186274,5.4734,182.71,182.66,13.03]
[1722031186484,45.0,182.7,182.66,13.03]
[1722031189877,45.0,182.7,182.65,13.03]
[1722031190578,45.0,182.7,182.66,13.03]
[1722031190959,45.0,182.71,182.66,13.03]
[1722031191382,50.4732,182.71,182.66,13.03]
[1722031191849,45.0,182.71,182.66,13.03]
[1722031193358,45.0,182.71,182.67,13.03]
[1722031193560,11.4901,182.73,182.67,13.03]
[1722031193561,45.0,182.72,182.67,13.03]
[1722031193765,45.0,182.72,182.68,13.03]
[1722031194274,45.0,182.72,182.62,15.9938]
[1722031194458,50.4729,182.72,182.66,13.03]
[1722031194777,5.4732,182.71,182.66,13.03]
[1722031194979,45.0,182.7,182.66,13.03]
[1722031195278,45.0,182.7,182.65,13.03]
[1722031196980,50.4735,182.7,182.64,13.03]
[1722031197786,50.4735,182.7,182.62,15.9938]
[1722031197787,45.0,182.7,182.65,13.03]
[1722031197959,45.0,182.71,182.66,13.03]
[1722031198372,45.0,182.72,182.66,13.03]
[1722031199877,50.4728,182.72,182.66,13.03]
[1722031200083,5.4732,182.71,182.65,13.03]
[1722031200259,45.0,182.7,182.64,13.03]
[1722031201187,58.03,182.71,182.64,13.03]
[1722031201383,13.03,182.7,182.63,13.03]
[1722031201581,45.0,182.69,182.63,13.03]
[1722031201759,45.0,182.69,182.64,13.03]
[1722031202462,45.0,182.7,182.65,13.03]
[1722031202785,45.0,182.7,182.62,15.9938]
[1722031202963,45.0,182.71,182.65,13.03]
[1722031203688,58.03,182.71,182.64,13.03]
[1722031206470,45.0,182.71,182.64,13.03]
[1722031206673,58.03,182.71,182.64,13.03]
[1722031208787,58.03,182.71,182.62,15.9938]
[1722031208995,6.0176,182.73,182.64,13.03]
[1722031209189,13.03,182.71,182.64,13.03]
[1722031209370,13.03,182.71,182.62,15.9938]
[1722031209696,13.03,182.71,182.64,13.03]
[1722031209991,6.0176,182.73,182.64,13.03]
[1722031210179,13.03,182.71,182.64,13.03]
[1722031210381,45.0,182.7,182.64,13.03]
[1722031211483,6.0176,182.73,182.64,13.03]
[1722031211688,13.03,182.71,182.62,15.9938]
[1722031211996,13.03,182.71,182.64,13.03]
[1722031212367,13.03,182.71,182.62,15.9938]
[1722031212886,45.0,182.7,182.64,13.03]
[1722031213082,45.0,182.7,182.62,15.9938]
[1722031213274,45.0,182.7,182.64,13.03]
[1722031214591,45.0,182.7,182.62,15.9938]
[1722031214792,58.03,182.7,182.63,13.03]
[1722031215803,63.5035,182.7,182.63,13.03]
[1722031215988,5.4739,182.69,182.65,1.529789]
[1722031216298,13.03,182.67,182.65,1.529789]
[1722031216501,45.0,182.66,182.65,1.529789]
[1722031216792,58.03,182.66,182.65,1.529789]
[1722031217000,63.5046,182.66,182.65,1.529789]
[1722031217480,58.03,182.66,182.65,1.529789]
[1722031218115,45.0,182.66,182.65,1.529789]
[1722031225644,50.4746,182.66,182.65,1.529789]
[1722031225817,45.0,182.66,182.65,1.529789]
[1722031226016,50.4746,182.66,182.65,1.529789]
[1722031226920,45.0,182.66,182.65,1.529789]
[1722031229813,15.4404,182.75,182.65,1.529789]
[1722031230215,19.0476,182.73,182.65,1.529789]
[1722031230409,5.4729,182.72,182.65,1.529789]
[1722031230922,13.03,182.7,182.65,1.529789]
[1722031231219,18.5035,182.7,182.65,1.529789]
[1722031231428,18.5038,182.69,182.65,1.529789]
[1722031231804,45.0,182.68,182.65,1.529789]
[1722031233521,45.0,182.68,182.65,14.559789]
[1722031233698,45.0,182.68,182.66,13.03]
[1722031234096,45.0,182.68,182.65,1.529789]
[1722031234716,45.0,182.69,182.65,1.529789]
[1722031251516,13.03,182.67,182.65,1.529789]
[1722031251833,58.03,182.66,182.65,1.529789]
[1722031254251,45.0,182.66,182.65,1.529789]
[1722031254407,13.03,182.7,182.65,1.529789]
[1722031254733,5.4731,182.71,182.65,1.529789]
[1722031255042,18.5031,182.71,182.65,1.529789]
[1722031255245,11.4904,182.73,182.65,1.529789]
[1722031255542,13.03,182.72,182.65,14.559789]
[1722031255711,18.5028,182.73,182.65,14.559789]
[1722031255906,13.03,182.73,182.66,13.03]
[1722031256108,13.03,182.72,182.66,13.03]
[1722031257535,5.71528547,182.77,182.7,13.03]
[1722031257736,13.03,182.79,182.72,13.03]
[1722031258653,13.03,182.8,182.73,13.03]
[1722031259010,45.0,182.79,182.73,13.03]
[1722031259217,6.1388,182.86,182.74,28.3274]
[1722031259417,13.03,182.81,182.74,28.3274]
[1722031259920,13.03,182.81,182.74,15.2974]
[1722031260117,5.4704,182.8,182.74,15.2974]
[1722031260347,13.03,182.79,182.74,15.2974]
[1722031260536,45.0,182.78,182.74,15.2974]
[1722031260734,45.0,182.78,182.69,6.007]
[1722031260735,13.03,182.76,182.7,15.2974]
[1722031260944,13.03,182.76,182.66,15.2974]
[1722031260945,5.4723,182.74,182.66,15.2974]
[1722031261245,45.0,182.78,182.66,15.2974]
[1722031261246,13.03,182.71,182.66,15.2974]
[1722031261823,45.0,182.7,182.66,15.2974]
[1722031263210,45.0,182.71,182.67,13.03]
[1722031263656,45.0,182.72,182.66,28.3274]
[1722031266247,45.0,182.72,182.68,13.03]
[1722031266617,45.0,182.72,182.67,13.03]
[1722031266845,58.03,182.73,182.66,28.3274]
[1722031269056,13.03,182.72,182.66,15.2974]
[1722031269214,13.03,182.68,182.65,1.529789]
[1722031269413,45.0,182.67,182.65,1.529789]
[1722031271239,45.0,182.68,182.65,1.529789]
[1722031271643,45.0,182.69,182.65,1.529789]
[1722031274856,58.03,182.69,182.65,1.529789]
[1722031279559,45.0,182.69,182.65,1.529789]
[1722031279730,45.0,182.7,182.65,1.529789]
[1722031280551,58.03,182.7,182.65,1.529789]
[1722031280747,63.5035,182.7,182.65,1.529789]
[1722031280949,13.03,182.69,182.65,1.529789]
[1722031281151,45.0,182.68,182.65,1.529789]
[1722031282771,18.5045,182.67,182.65,1.529789]
[1722031283055,58.03,182.66,182.65,1.529789]
[1722031283464,45.0,182.66,182.65,1.529789]
[1722031285767,45.0,182.66,182.65,1.529789]
[1722031286643,63.5046,182.66,182.65,1.529789]
[1722031290362,83.5046,182.66,182.65,1.529789]
[1722031290570,20.0,182.65,182.54,0.7847425]
[1722031290742,13.03,182.59,182.54,0.7847425]
[1722031290945,13.03,182.58,182.54,0.7847425]
[1722031291142,45.0,182.57,182.54,0.7847425]
[1722031291371,13.03,182.62,182.55,13.03]
[1722031291666,6.1701,182.64,182.54,0.7847425]
[1722031291667,13.03,182.59,182.54,0.7847425]
[1722031291862,45.0,182.58,182.54,0.7847425]
[1722031292346,58.03,182.59,182.54,0.7847425]
[1722031292548,45.0,182.59,182.54,13.8147425]
[1722031293743,45.0,182.59,182.54,0.7847425]
[1722031295862,45.0,182.59,182.54,13.8147425]
[1722031296164,45.0,182.6,182.54,13.8147425]
[1722031296542,45.0,182.6,182.54,0.7847425]
[1722031296744,45.0,182.6,182.55,13.03]
[1722031297344,45.0,182.6,182.54,0.7847425]
[1722031297345,45.0,182.6,182.54,13.8147425]
[1722031300964,58.03,182.6,182.54,0.7847425]
[1722031301869,63.5065,182.6,182.54,0.7847425]
[1722031303076,45.0,182.6,182.54,13.8147425]
[1722031303248,5.70346821,182.66,182.59,13.03]
[1722031303455,18.5039,182.69,182.62,13.03]
[1722031303774,5.4741,182.68,182.62,29.6207]
[1722031303952,18.5041,182.68,182.62,16.5907]
[1722031304151,13.03,182.67,182.62,16.5907]
[1722031304354,18.504,182.68,182.62,16.5907]
[1722031306159,45.0,182.67,182.62,16.5907]
[1722031307167,45.0,182.68,182.62,16.5907]
[1722031307767,13.03,182.66,182.57,16.5907]
[1722031307968,13.03,182.65,182.58,13.03]
[1722031308193,45.0,182.64,182.58,13.03]
[1722031308350,63.5052,182.64,182.57,29.6207]
[1722031308556,58.03,182.64,182.57,29.6207]
[1722031308770,63.5052,182.64,182.57,29.6207]
[1722031309077,5.4755,182.63,182.58,13.03]
[1722031309265,45.0,182.62,182.57,29.6207]
[1722031309882,45.0,182.63,182.57,29.6207]
[1722031310676,50.4755,182.63,182.57,16.5907]
[1722031310873,63.5055,182.63,182.57,16.5907]
[1722031311073,5.4759,182.62,182.57,16.5907]
[1722031311374,45.0,182.61,182.57,16.5907]
[1722031311754,45.0,182.62,182.57,16.5907]
[1722031312884,20.0,182.7,182.59,13.03]
[1722031313192,13.03,182.66,182.59,13.03]
[1722031313478,18.5049,182.65,182.58,13.03]
[1722031314176,13.03,182.65,182.58,13.03]
[1722031314359,45.0,182.64,182.58,13.03]
[1722031315173,58.03,182.64,182.57,16.5907]
[1722031315378,58.03,182.64,182.57,29.6207]
[1722031315566,13.03,182.63,182.57,16.5907]
[1722031315762,58.03,182.62,182.57,16.5907]
[1722031317373,45.0,182.62,182.57,16.5907]
[1722031317578,45.0,182.63,182.57,16.5907]
[1722031317876,13.03,182.62,182.57,16.5907]
[1722031318066,45.0,182.61,182.57,16.5907]
[1722031318573,13.03,182.59,182.54,0.7847425]
[1722031318765,58.03,182.58,182.54,0.7847425]
[1722031320271,45.0,182.58,182.54,0.7847425]
[1722031320577,58.03,182.58,182.54,0.7847425]
[1722031321972,45.0,182.58,182.54,0.7847425]
[1722031322290,13.03,182.57,182.54,0.7847425]
[1722031322462,45.0,182.56,182.54,0.7847425]
[1722031322661,58.03,182.56,182.54,0.7847425]
[1722031322869,63.5076,182.56,182.54,0.7847425]
[1722031323071,18.5079,182.55,182.54,0.7847425]
[1722031323269,63.5079,182.55,182.54,0.7847425]
[1722031323472,58.03,182.55,182.54,0.7847425]
[1722031324464,63.5079,182.55,182.54,0.7847425]
[1722031328064,63.5079,182.55,182.4,16.0167]
[1722031328065,5.4803,182.47,182.4,16.0167]
[1722031328376,18.5103,182.47,182.4,29.0467]
[1722031328580,5.4806,182.46,182.4,16.0167]
[1722031329172,13.03,182.47,182.36,0.7847425]
[1722031329173,63.5111,182.45,182.36,0.7847425]
[1722031329389,13.03,182.42,182.36,0.7847425]
[1722031329692,13.03,182.4,182.36,0.7847425]
[1722031330065,45.0,182.39,182.36,0.7847425]
[1722031330266,5.481,182.45,182.37,13.03]
[1722031330484,13.03,182.46,182.39,13.03]
[1722031330682,63.5106,182.46,182.39,13.03]
[1722031330870,58.03,182.46,182.39,13.03]
[1722031331072,5.48,182.49,182.36,0.7847425]
[1722031331686,57.88509725,182.55,182.38,22.174]
[1722031331863,57.88509725,182.55,182.39,20.0]
[1722031332192,5.4799,182.49,182.39,20.0]
[1722031332487,5.4798,182.49,182.39,20.0]
[1722031333884,45.0,182.48,182.39,20.0]
[1722031334275,50.4801,182.48,182.39,20.0]
[1722031334477,45.0,182.48,182.39,20.0]
[1722031334680,50.4801,182.48,182.39,20.0]
[1722031336599,45.0,182.48,182.4,1.09637381]
[1722031336775,50.48,182.48,182.39,20.0]
[1722031337667,50.48,182.48,182.38,22.174]
[1722031337992,5.4804,182.47,182.39,20.0]
[1722031338290,45.0,182.46,182.39,20.0]
[1722031338667,50.4807,182.46,182.39,20.0]
[1722031339080,5.481,182.45,182.38,22.174]
[1722031339278,45.0,182.44,182.39,20.0]
[1722031339992,45.0,182.45,182.39,20.0]
[1722031340384,5.4798,182.49,182.39,20.0]
[1722031340585,45.0,182.48,182.39,20.0]
[1722031342697,5.4791,182.51,182.4,15.2461]